bitfinex/quotes_ETHUSD_20240717
["timestamp","ask_amount","ask_price","bid_price","bid_amount"]
[1721183256478,0.1535446,3492.0,3491.9,7.42754]
[1721183256807,0.1535446,3492.0,3491.9,7.46861264]
[1721183257011,0.1535446,3492.0,3491.9,13.9931739]
[1721183257690,0.1535446,3492.0,3491.9,16.9931739]
[1721183258279,2.86271,3493.2,3492.5,1.7]
[1721183258579,2.86271,3493.2,3492.6,0.04084349]
[1721183259488,2.86262,3493.3,3492.6,0.04084349]
[1721183259687,2.86262,3493.3,3492.6,0.78759684]
[1721183260132,2.4996,3493.8,3492.9,1.7]
[1721183260133,2.8624,3493.6,3492.9,1.7]
[1721183260291,2.86185,3494.3,3493.0,0.05724976]
[1721183260479,2.4875,3494.4,3493.1,2.86272]
[1721183260480,2.86205,3494.0,3493.1,2.86272]
[1721183260692,2.86205,3494.0,3493.1,2.90338695]
[1721183261119,2.86214,3493.9,3493.1,2.90338695]
[1721183261317,2.86214,3493.9,3493.2,0.05724552]
[1721183261483,2.86214,3493.9,3493.2,0.04065182]
[1721183262283,2.86246,3493.5,3493.2,0.04065182]
[1721183262486,2.86246,3493.5,3492.7,2.86309]
[1721183262687,2.86246,3493.5,3493.3,0.04063668]
[1721183262917,2.86246,3493.5,3492.7,2.86309]
[1721183263220,2.86277,3493.2,3492.8,0.04071238]
[1721183263421,2.86277,3493.2,3492.6,0.74675335]
[1721183263422,2.86277,3493.2,3492.4,2.86335]
[1721183263596,2.86277,3493.2,3492.4,3.681795]
[1721183263798,2.86277,3493.2,3492.5,0.04069555]
[1721183265020,2.86277,3493.2,3492.5,2.90396555]
[1721183265518,2.86255,3493.4,3492.6,2.86319]
[1721183265698,2.86255,3493.4,3492.6,2.90387041]
[1721183265898,2.86255,3493.4,3492.7,0.37223154]
[1721183266124,2.86237,3493.6,3492.8,1.7]
[1721183266323,2.86222,3493.8,3492.8,4.60362012]
[1721183266527,2.8623,3493.7,3493.0,2.86285]
[1721183267021,2.8623,3493.7,3493.1,0.04035548]
[1721183267325,2.86218,3493.9,3493.1,1.01388303]
[1721183268213,5.19936,3494.0,3493.1,1.01388303]
[1721183268404,2.86229,3493.7,3493.1,1.01388303]
[1721183269226,2.86229,3493.7,3493.1,0.04035548]
[1721183269405,2.86255,3493.4,3493.1,0.04035548]
[1721183269609,2.86255,3493.4,3492.7,3.23534154]
[1721183269805,2.86255,3493.4,3493.2,0.04030625]
[1721183270135,2.86255,3493.4,3493.3,0.04029111]
[1721183270621,2.86255,3493.4,3492.7,3.23534154]
[1721183270828,2.86255,3493.4,3492.8,0.56349415]
[1721183271049,2.86255,3493.4,3492.8,0.60386097]
[1721183271733,5.72514,3493.4,3492.8,0.60386097]
[1721183272098,2.86255,3493.4,3492.8,0.60386097]
[1721183272534,2.86262,3493.3,3492.8,0.60386097]
[1721183275241,3.0,3493.9,3492.8,0.04036682]
[1721183275445,2.8628,3493.1,3492.8,0.04036682]
[1721183275607,2.8628,3493.1,3492.5,2.3996]
[1721183276136,2.8628,3493.1,3492.6,0.04041785]
[1721183277501,2.8628,3493.1,3492.6,0.74075363]
[1721183277699,2.86288,3493.0,3492.6,0.74075363]
[1721183279705,2.86288,3493.0,3492.6,0.04041785]
[1721183279946,2.86328,3492.5,3492.0,3.0]
[1721183280304,2.86328,3492.5,3491.9,5.4474]
[1721183282237,2.86311,3492.7,3491.9,8.31116]
[1721183282405,2.8631,3492.8,3492.0,2.86367]
[1721183282606,2.8631,3492.8,3492.1,3.981053]
[1721183283307,2.8631,3492.8,3492.2,2.86352]
[1721183283743,2.8631,3492.8,3492.1,3.981063]
[1721183286065,2.8631,3492.8,3492.1,1.117483]
[1721183286973,2.8631,3492.8,3492.1,3.981083]
[1721183287282,2.86326,3492.6,3492.1,1.117483]
[1721183287426,2.86326,3492.6,3491.8,3.0]
[1721183287427,2.86332,3492.5,3491.8,3.0]
[1721183287849,2.86332,3492.5,3491.9,1.7]
[1721183289226,2.86326,3492.6,3491.9,1.7]
[1721183289416,2.86328,3492.5,3491.9,1.7]
[1721183289617,2.86328,3492.5,3492.0,1.042776]
[1721183289843,2.86328,3492.5,3492.0,4.042776]
[1721183290041,2.3183,3492.7,3492.0,4.042776]
[1721183290240,7.18888144,3494.0,3492.0,4.042776]
[1721183290241,2.86295,3492.9,3492.2,2.86346]
[1721183290442,2.86295,3492.9,3492.2,6.3336376]
[1721183290632,2.86295,3492.9,3492.3,1.7]
[1721183290934,2.3916,3493.3,3492.6,2.86317]
[1721183291159,2.8626,3493.4,3492.7,4.5631]
[1721183293247,2.3916,3493.7,3492.9,2.86293]
[1721183293443,2.3916,3493.7,3493.1,1.7]
[1721183293646,2.86215,3493.9,3493.1,1.7]
[1721183293869,2.86215,3493.9,3493.2,0.05724602]
[1721183294385,2.86215,3493.9,3493.1,1.7]
[1721183294547,2.3689,3494.1,3493.1,1.7]
[1721183294754,2.86186,3494.3,3493.3,2.86261]
[1721183295057,2.8619,3494.2,3493.6,2.86237]
[1721183295645,2.8619,3494.2,3493.7,0.04032842]
[1721183295850,2.8619,3494.2,3493.1,1.7]
[1721183295851,2.86213,3493.9,3493.1,1.7]
[1721183296172,3.394293,3493.9,3493.8,0.04031329]
[1721183296487,3.394293,3493.9,3493.8,0.04025104]
[1721183296488,2.86213,3493.9,3493.8,0.04025104]
[1721183296778,2.86213,3493.9,3493.2,2.86264]
[1721183296951,2.86213,3493.9,3493.8,0.04025104]
[1721183297141,2.86213,3493.9,3493.2,2.86264]
[1721183297342,2.86213,3493.9,3493.8,0.04025104]
[1721183297974,2.86213,3493.9,3493.2,2.86264]
[1721183298174,2.86213,3493.9,3493.8,0.04025104]
[1721183298363,2.86213,3493.9,3493.2,3.682423]
[1721183298568,2.86213,3493.9,3493.8,0.04025104]
[1721183298769,2.86213,3493.9,3493.2,3.682423]
[1721183299075,2.86213,3493.9,3493.8,0.04025104]
[1721183299277,2.86213,3493.9,3493.3,0.04032672]
[1721183299481,2.86213,3493.9,3493.8,0.04025104]
[1721183299675,2.86213,3493.9,3493.3,0.82855397]
[1721183299979,2.86213,3493.9,3493.8,0.04025104]
[1721183300176,2.86213,3493.9,3493.3,0.82855397]
[1721183300380,5.32147,3494.1,3493.8,0.04025104]
[1721183300567,5.32147,3494.1,3493.4,2.86251]
[1721183300879,5.32147,3494.1,3493.2,0.819783]
[1721183300880,2.86215,3493.9,3493.2,0.819783]
[1721183301177,2.86215,3493.9,3493.5,0.04029644]
[1721183301391,2.86215,3493.9,3493.2,2.86269]
[1721183301580,2.86229,3493.7,3493.6,0.04013751]
[1721183301784,2.86229,3493.7,3492.6,4.56314]
[1721183301785,2.4413,3493.6,3492.6,2.86314]
[1721183302293,2.4413,3493.6,3492.7,0.04029303]
[1721183302579,2.86263,3493.3,3492.7,0.04029303]
[1721183302945,2.86271,3493.2,3492.2,6.8704676]
[1721183303153,2.86283,3493.1,3492.8,0.03895247]
[1721183303457,2.86283,3493.1,3492.9,0.03897586]
[1721183303647,2.86283,3493.1,3492.3,2.86341]
[1721183303972,2.86283,3493.1,3492.4,0.72609034]
[1721183304573,2.86296,3492.9,3492.4,0.72609034]
[1721183305150,2.86296,3492.9,3492.4,0.03905158]
[1721183305347,2.86296,3492.9,3492.2,4.0069776]
[1721183305555,2.76296,3492.9,3492.5,0.03903644]
[1721183305859,2.86303,3492.8,3492.6,0.03902129]
[1721183306062,2.86303,3492.8,3492.2,4.0069776]
[1721183306265,2.86303,3492.8,3492.7,0.03900615]
[1721183306472,2.76303,3492.8,3492.2,4.0069776]
[1721183306978,2.56303,3492.8,3492.2,4.0069776]
[1721183307165,2.56303,3492.8,3492.7,0.03900615]
[1721183307361,5.21901,3492.7,3492.2,2.86]
[1721183307562,5.21901,3492.7,3491.9,3.0]
[1721183307775,5.21901,3492.7,3492.0,3.0]
[1721183308280,5.21901,3492.7,3491.9,3.0]
[1721183308467,5.21901,3492.7,3492.0,1.000973]
[1721183308659,5.21901,3492.7,3492.0,1.04008517]
[1721183309291,2.86322,3492.6,3492.0,1.04008517]
[1721183310586,5.21901,3492.7,3492.0,1.04008517]
[1721183310787,2.8636,3492.1,3492.0,0.03911217]
[1721183311207,2.8636,3492.1,3491.4,2.86417]
[1721183311407,2.8636,3492.1,3492.0,0.03940719]
[1721183311628,2.86342,3492.4,3491.5,2.86407]
[1721183311771,2.86342,3492.4,3492.0,0.03940719]
[1721183311974,2.86342,3492.4,3491.6,0.987414]
[1721183312198,2.86342,3492.4,3492.1,0.03939204]
[1721183312394,2.3559,3492.7,3491.6,3.851414]
[1721183312595,5.21902,3492.7,3492.2,0.0393769]
[1721183312899,2.86335,3492.5,3492.3,0.03936175]
[1721183313097,2.86335,3492.5,3491.7,4.56385]
[1721183313378,2.3559,3492.7,3491.8,0.8415264]
[1721183313581,2.3559,3492.7,3491.8,0.88096389]
[1721183314014,2.86353,3492.2,3491.8,0.88096389]
[1721183314383,2.86353,3492.2,3491.8,0.03943749]
[1721183314787,2.86361,3492.1,3491.6,0.987414]
[1721183315010,2.86361,3492.1,3491.9,0.03942234]
[1721183315192,2.86361,3492.1,3491.6,0.987414]
[1721183315387,5.14671,3492.1,3492.0,0.03940719]
[1721183315613,5.14671,3492.1,3491.5,2.86403]
[1721183315819,5.14671,3492.1,3491.6,0.286403]
[1721183316122,5.14671,3492.1,3491.6,0.3258708]
[1721183317711,2.2831,3492.1,3491.6,0.3258708]
[1721183318822,2.86349,3492.3,3491.6,3.1898708]
[1721183319003,2.86347,3492.3,3491.6,3.1898708]
[1721183319199,2.86347,3492.3,3491.7,0.60539008]
[1721183319612,2.86347,3492.3,3491.8,0.03943749]
[1721183319928,2.86352,3492.2,3491.7,0.60539008]
[1721183320101,2.86352,3492.2,3491.9,0.03942234]
[1721183320430,2.86352,3492.2,3491.5,2.86403]
[1721183320604,2.8636,3492.1,3492.0,0.03940719]
[1721183320801,2.86369,3492.0,3491.3,2.86425]
[1721183322412,2.4265,3491.9,3491.3,2.86425]
[1721183323695,2.4265,3491.9,3491.4,0.03956188]
[1721183325229,5.29027,3491.9,3491.4,0.03956188]
[1721183325430,2.86398,3491.7,3491.4,0.03956188]
[1721183325726,2.86398,3491.7,3491.0,3.0]
[1721183325938,2.86398,3491.7,3491.5,0.03969061]
[1721183326135,2.86398,3491.7,3491.0,3.0]
[1721183326356,2.86398,3491.7,3491.6,0.03967546]
[1721183326575,2.86398,3491.7,3490.9,2.86453]
[1721183327153,2.86402,3491.6,3491.0,0.03976639]
[1721183332374,2.8641,3491.5,3491.0,0.03976639]
[1721183332676,2.8641,3491.5,3491.1,0.03975123]
[1721183332965,2.8641,3491.5,3490.9,2.86458]
[1721183333142,2.8641,3491.5,3491.2,0.03973607]
[1721183333343,2.8641,3491.5,3490.9,2.86458]
[1721183333670,2.8641,3491.5,3491.0,0.572933]
[1721183333880,2.8641,3491.5,3491.1,0.03975123]
[1721183334641,2.86419,3491.4,3491.1,0.03975123]
[1721183335074,2.8641,3491.5,3490.5,2.4906]
[1721183335075,2.86426,3491.3,3490.5,2.4906]
[1721183335257,5.28736,3491.3,3490.5,5.3555]
[1721183335465,5.28736,3491.3,3490.6,4.3275766]
[1721183335669,5.28736,3491.3,3490.7,2.86474]
[1721183335855,5.28736,3491.3,3490.8,0.03857428]
[1721183336067,5.28736,3491.3,3490.6,4.288972]
[1721183336380,5.28736,3491.3,3490.7,2.90332944]
[1721183336579,5.28736,3491.3,3490.8,0.96829014]
[1721183336775,2.462,3491.9,3491.1,2.3512]
[1721183336776,2.2595,3491.9,3491.1,2.3512]
[1721183336984,2.8637,3492.0,3491.2,2.86433]
[1721183337186,2.8637,3492.0,3491.2,2.90293119]
[1721183337389,2.8637,3492.0,3491.3,0.81186212]
[1721183337682,2.8637,3492.0,3491.4,0.0385694]
[1721183337846,2.86379,3491.9,3491.4,0.0385694]
[1721183338563,2.86379,3491.9,3491.1,2.86442]
[1721183338748,2.86379,3491.9,3491.5,0.03853347]
[1721183338949,2.86379,3491.9,3491.1,2.86442]
[1721183339150,2.86379,3491.9,3491.6,0.03851831]
[1721183339376,2.86379,3491.9,3491.1,3.70414901]
[1721183339585,2.86379,3491.9,3491.7,0.03850316]
[1721183339779,2.86379,3491.9,3491.1,2.86442]
[1721183339961,2.86379,3491.9,3491.8,0.03848801]
[1721183340159,2.86379,3491.9,3491.1,2.86442]
[1721183340360,2.86379,3491.9,3491.8,0.03848801]
[1721183340561,2.86385,3491.8,3491.2,2.86434]
[1721183340758,2.86385,3491.8,3491.1,0.83972901]
[1721183340965,2.8641,3491.5,3490.8,0.96829014]
[1721183341158,2.8641,3491.5,3490.8,3.83295014]
[1721183341367,2.86402,3491.6,3490.8,3.83295014]
[1721183341776,2.86402,3491.6,3490.9,2.86457]
[1721183343298,5.20571,3492.1,3491.3,2.86425]
[1721183343474,5.20571,3492.1,3491.4,0.63013834]
[1721183343965,2.8637,3492.0,3491.4,0.572861]
[1721183344305,2.86346,3492.3,3491.5,2.3882]
[1721183344478,2.86329,3492.5,3491.6,0.05727292]
[1721183344479,5.72664,3492.5,3491.6,0.05727292]
[1721183344788,2.86329,3492.5,3491.6,0.58824939]
[1721183345461,2.3078,3492.6,3491.9,2.86377]
[1721183345658,5.21604,3493.4,3491.8,7.0149]
[1721183345861,2.86263,3493.3,3492.5,2.86321]
[1721183346270,2.86263,3493.3,3492.3,2.86343]
[1721183346470,2.86263,3493.3,3492.6,2.86314]
[1721183347504,2.3535,3493.4,3492.7,2.86311]
[1721183347708,5.3535,3493.4,3492.7,3.435755]
[1721183347910,2.3535,3493.4,3492.7,3.435755]
[1721183348207,1.18753962,3494.0,3492.7,3.435755]
[1721183348208,2.86206,3494.0,3492.7,0.572645]
[1721183348371,2.86206,3494.0,3492.8,0.2272645]
[1721183348572,2.86206,3494.0,3492.9,0.05724788]
[1721183349206,2.86206,3494.0,3493.2,2.86264]
[1721183349608,2.3535,3494.1,3493.4,2.86246]
[1721183350107,5.3535,3494.1,3493.4,2.86246]
[1721183350807,8.21548,3494.1,3493.4,2.86246]
[1721183351018,9.3232,3494.1,3493.1,2.86271]
[1721183351376,9.3232,3494.1,3493.4,2.86253]
[1721183353783,9.3232,3494.1,3493.5,0.03814152]
[1721183353983,2.86237,3493.6,3493.5,0.03814152]
[1721183354195,2.86256,3493.4,3492.6,2.86312]
[1721183354515,2.86256,3493.4,3492.7,1.830037]
[1721183354675,2.86256,3493.4,3492.7,1.86829964]
[1721183355278,5.15933,3493.3,3492.7,0.03826264]
[1721183355581,5.15933,3493.3,3492.4,2.86335]
[1721183355781,2.462,3492.9,3492.8,0.0382475]
[1721183356007,2.86309,3492.8,3492.0,2.86368]
[1721183356425,2.86304,3492.8,3492.1,0.03835351]
[1721183356607,2.86311,3492.7,3492.1,0.03835351]
[1721183357429,2.86304,3492.8,3492.1,0.03835351]
[1721183357634,3.0,3493.2,3492.1,0.61494086]
[1721183357793,2.86288,3493.0,3492.1,0.03835351]
[1721183358196,3.0,3493.2,3492.1,0.03835351]
[1721183359118,2.86295,3492.9,3492.2,2.86351]
[1721183359431,2.86295,3492.9,3492.2,2.9016793]
[1721183359918,2.86295,3492.9,3492.2,0.0381693]
[1721183360125,3.735524,3492.9,3492.2,0.0381693]
[1721183362420,3.735524,3492.9,3492.2,2.9016893]
[1721183362921,2.86304,3492.8,3492.2,0.0381693]
[1721183363101,2.86304,3492.8,3492.1,2.86358]
[1721183363523,2.86304,3492.8,3492.3,0.03803104]
[1721183363734,2.86304,3492.8,3492.2,0.03804619]
[1721183364110,2.86304,3492.8,3492.4,0.03801589]
[1721183364495,2.86304,3492.8,3492.1,2.86358]
[1721183364841,2.2967,3493.3,3492.3,2.8634]
[1721183364995,2.2967,3493.3,3492.6,2.86319]
[1721183365199,2.86224,3493.8,3492.6,1.7]
[1721183365396,2.86224,3493.8,3493.0,5.7256]
[1721183365946,2.86224,3493.8,3493.1,0.03790396]
[1721183366730,2.86224,3493.8,3493.1,2.90066396]
[1721183367600,2.4653,3493.9,3493.1,0.03790396]
[1721183367907,2.86238,3493.6,3492.2,4.1526]
[1721183368104,2.86253,3493.5,3492.7,2.86306]
[1721183368507,2.86253,3493.5,3492.8,0.03783371]
[1721183369335,2.86253,3493.5,3492.8,2.90085371]
[1721183371477,5.57399,3493.9,3492.8,0.03783371]
[1721183371620,2.86251,3493.5,3492.8,0.03783371]
[1721183371826,2.8627,3493.2,3492.4,2.86335]
[1721183372043,2.8627,3493.2,3492.9,0.03781857]
[1721183372256,2.8627,3493.2,3492.4,2.86335]
[1721183372453,2.8627,3493.2,3493.0,0.03780343]
[1721183372633,2.8627,3493.2,3492.5,3.51320034]
[1721183372840,2.86251,3493.5,3493.1,0.03778829]
[1721183373076,2.86251,3493.5,3492.5,3.51320034]
[1721183373077,2.86263,3493.3,3492.5,3.51320034]
[1721183373757,2.86263,3493.3,3492.6,0.037864]
[1721183373972,2.86263,3493.3,3492.7,0.64144143]
[1721183374128,2.86263,3493.3,3492.8,0.03783371]
[1721183378056,5.15642,3493.2,3492.8,0.03783371]
[1721183378355,2.86278,3493.1,3492.8,0.03783371]
[1721183378562,2.86269,3493.3,3492.6,2.86313]
[1721183379055,2.86269,3493.3,3492.7,0.03791263]
[1721183379447,2.86279,3493.1,3492.7,0.03791263]
[1721183379644,2.86279,3493.1,3492.4,2.86335]
[1721183380257,2.86289,3493.0,3492.5,0.03794291]
[1721183380631,2.86289,3493.0,3492.3,0.7725334]
[1721183380829,2.86289,3493.0,3492.6,0.03792777]
[1721183381030,2.86279,3493.1,3492.3,0.7725334]
[1721183381324,2.86279,3493.1,3492.7,0.03791263]
[1721183381530,2.86279,3493.1,3492.4,1.06948534]
[1721183381748,5.15629,3493.4,3492.6,2.86312]
[1721183381929,5.15629,3493.4,3492.4,1.06948534]
[1721183382130,2.8627,3493.2,3492.7,0.03791263]
[1721183382351,2.86285,3493.1,3492.8,0.03789748]
[1721183382659,2.86285,3493.1,3492.4,3.93283534]
[1721183382856,2.86286,3493.0,3492.9,0.03788234]
[1721183383023,2.86298,3492.9,3492.1,2.8636]
[1721183383426,2.86298,3492.9,3492.2,0.03798835]
[1721183385264,2.86303,3492.8,3492.2,0.03798835]
[1721183385971,2.86285,3493.1,3492.2,2.90150835]
[1721183385972,2.86294,3493.0,3492.2,2.90150835]
[1721183386146,2.86295,3492.9,3492.3,0.29015084]
[1721183386342,2.86295,3492.9,3492.4,0.03795806]
[1721183386657,2.86295,3492.9,3492.1,2.86355]
[1721183386836,2.86295,3492.9,3492.5,0.03794291]
[1721183387033,2.86295,3492.9,3492.1,2.86355]
[1721183387660,2.86295,3492.9,3492.2,0.03798835]
[1721183387866,2.86303,3492.8,3492.2,1.13639719]
[1721183388891,5.15625,3493.4,3492.6,2.86319]
[1721183389164,2.86262,3493.3,3492.6,2.86319]
[1721183389863,2.86262,3493.3,3492.7,0.03795415]
[1721183390093,2.86262,3493.3,3492.8,0.29011442]
[1721183390231,2.86238,3493.6,3492.8,0.29011442]
[1721183390434,2.86246,3493.5,3492.9,0.03791052]
[1721183390960,2.86254,3493.4,3492.9,0.03791052]
[1721183391333,2.86248,3493.5,3492.9,0.03791052]
[1721183391533,2.86254,3493.4,3492.9,0.03791052]
[1721183393361,2.86246,3493.5,3492.9,0.03791052]
[1721183396537,2.86254,3493.4,3492.9,0.03791052]
[1721183396740,2.86275,3493.2,3492.9,0.03791052]
[1721183397040,2.86275,3493.2,3492.3,2.86343]
[1721183397041,2.4863,3493.0,3492.3,2.86343]
[1721183397252,2.4863,3493.0,3492.4,0.03795807]
[1721183397471,5.34917,3493.0,3492.4,0.03795807]
[1721183398496,5.34917,3493.0,3492.4,0.52698084]
[1721183399538,2.86287,3493.0,3492.4,0.52698084]
[1721183400340,2.86287,3493.0,3492.4,0.03795807]
[1721183402459,4.05028962,3493.2,3492.4,2.90126807]
[1721183402659,2.86275,3493.2,3492.4,2.90126807]
[1721183402888,2.86279,3493.1,3492.4,2.90126807]
[1721183403582,7.71133,3493.7,3492.4,2.90126807]
[1721183403583,4.05007962,3493.4,3492.7,2.8631]
[1721183403786,2.86254,3493.4,3492.7,2.8631]
[1721183403987,2.86254,3493.4,3492.8,0.28631]
[1721183404375,4.05007962,3493.4,3492.8,0.28631]
[1721183404581,4.05007962,3493.4,3492.7,2.8631]
[1721183405656,1.18753962,3493.5,3492.8,2.86302]
[1721183405889,1.18753962,3493.5,3492.8,5.34902]
[1721183405890,4.04999962,3493.5,3492.8,5.34902]
[1721183406085,2.86246,3493.5,3492.8,5.34902]
[1721183406593,4.04999962,3493.5,3492.8,5.34902]
[1721183406768,2.86246,3493.5,3492.9,0.821212]
[1721183407493,4.04999962,3493.5,3492.9,0.821212]
[1721183408194,4.05007962,3493.4,3492.5,5.20994]
[1721183408909,7.45774178,3492.7,3492.5,5.20994]
[1721183409108,11.92436192,3492.7,3492.6,2.86319]
[1721183409315,13.88480935,3492.7,3492.6,2.86319]
[1721183409459,13.88480935,3492.7,3492.5,2.86324]
[1721183409968,13.88480935,3492.7,3492.4,0.03795807]
[1721183410291,15.55958629,3492.7,3492.4,0.03795807]
[1721183411187,13.88480935,3492.7,3492.4,0.03795807]
[1721183418013,13.88480935,3492.7,3492.6,2.86319]
[1721183425085,13.88480935,3492.7,3492.4,0.03795807]
[1721183425400,1.021,3492.5,3492.4,0.03795807]
[1721183426289,13.88480935,3492.7,3492.4,0.03795807]
[1721183426483,16.19943425,3492.7,3492.4,0.03795807]
[1721183427608,19.06260425,3492.7,3492.4,0.03795807]
[1721183427785,19.83797387,3492.7,3492.4,0.03795807]
[1721183427992,2.86321,3492.6,3492.4,0.03795807]
[1721183429709,2.86327,3492.5,3492.4,0.03795807]
[1721183429912,6.0688209,3492.5,3492.4,0.03795807]
[1721183430125,8.4370209,3492.5,3492.4,0.03795807]
[1721183430293,8.44273426,3492.5,3492.4,0.03795807]
[1721183431311,11.30600426,3492.5,3492.4,0.03795807]
[1721183431533,11.60484577,3492.5,3492.4,0.03795807]
[1721183432028,15.97602128,3492.5,3492.4,0.03795807]
[1721183432322,21.17980467,3492.5,3492.4,0.03795807]
[1721183432525,21.17816333,3492.5,3492.4,0.03795807]
[1721183432716,19.38929128,3492.5,3492.4,0.03795807]
[1721183432900,21.17816333,3492.5,3492.4,0.03795807]
[1721183433305,19.38929128,3492.5,3492.4,0.03795807]
[1721183433812,16.52602128,3492.5,3492.4,0.03795807]
[1721183434218,19.38929128,3492.5,3492.4,0.03795807]
[1721183434729,21.17649744,3492.5,3492.4,0.03795807]
[1721183435204,19.38929128,3492.5,3492.4,0.03795807]
[1721183435620,16.52602128,3492.5,3492.4,0.03795807]
[1721183436738,19.38929128,3492.5,3492.4,0.03795807]
[1721183437041,21.17571813,3492.5,3492.4,0.03795807]
[1721183437238,19.38929128,3492.5,3492.4,0.03795807]
[1721183438104,2.86445,3491.1,3490.6,7.28]
[1721183438309,2.86467,3490.8,3490.2,3.4490175]
[1721183438507,2.86467,3490.8,3490.2,0.4490175]
[1721183438719,2.86467,3490.8,3490.1,2.86523]
[1721183438919,2.86445,3491.1,3490.1,2.86523]
[1721183438920,2.86445,3491.1,3490.2,1.260993]
[1721183439117,2.86445,3491.1,3490.2,4.126153]
[1721183439316,2.8646,3490.9,3490.2,4.126153]
[1721183439518,2.86445,3491.1,3490.4,2.86499]
[1721183440122,2.86445,3491.1,3490.2,4.126153]
[1721183440123,2.86451,3491.0,3490.2,4.126153]
[1721183440423,2.86468,3490.8,3490.2,1.260993]
[1721183441006,2.86436,3491.2,3490.3,0.4126233]
[1721183441211,2.86442,3491.1,3490.3,0.4126233]
[1721183441443,2.86412,3491.5,3490.5,2.3682]
[1721183441612,2.8641,3491.5,3490.7,2.86468]
[1721183441939,2.86419,3491.4,3490.7,2.86468]
[1721183442139,2.86427,3491.3,3490.5,5.2331]
[1721183442339,2.86427,3491.3,3490.6,2.86482]
[1721183442521,2.8641,3491.5,3490.5,5.95361023]
[1721183442522,2.8641,3491.5,3490.7,2.86474]
[1721183443344,2.86398,3491.7,3490.8,2.86465]
[1721183443541,3.0,3491.6,3490.9,2.86458]
[1721183443743,5.86393,3491.7,3491.0,2.86449]
[1721183443943,5.86393,3491.7,3491.0,3.437411]
[1721183444118,5.86393,3491.7,3490.8,2.86461]
[1721183444510,5.86393,3491.7,3490.9,2.86458]
[1721183445534,3.0,3491.7,3491.0,2.86448]
[1721183445842,2.3571,3491.8,3491.0,2.86448]
[1721183445843,5.86385,3491.8,3491.0,2.86448]
[1721183446049,2.86396,3491.7,3490.9,2.86458]
[1721183446231,3.0,3491.6,3490.9,3.437512]
[1721183446819,3.0,3491.6,3491.0,2.8645]
[1721183447719,3.0,3491.7,3491.0,2.8645]
[1721183448011,2.86408,3491.6,3490.9,0.572932]
[1721183448756,2.86408,3491.6,3490.9,3.437502]
[1721183449821,5.86393,3491.7,3490.9,3.437502]
[1721183450049,5.86393,3491.7,3491.0,0.6302162]
[1721183450269,2.86402,3491.6,3491.0,0.6302162]
[1721183450449,2.86402,3491.6,3490.9,2.86457]
[1721183450833,2.86411,3491.5,3490.6,2.86481]
[1721183451264,2.4811,3491.4,3490.8,2.86466]
[1721183451951,2.4811,3491.4,3490.7,2.86473]
[1721183453033,5.34528,3491.4,3490.7,2.86473]
[1721183453450,2.86436,3491.2,3490.4,2.86494]
[1721183453780,2.86448,3491.1,3490.4,2.86499]
[1721183454295,2.86451,3491.0,3490.4,2.86499]
[1721183457095,2.3353,3490.9,3490.0,2.86532]
[1721183457299,2.86476,3490.7,3490.0,2.86532]
[1721183457594,2.86476,3490.7,3490.1,2.86524]
[1721183457743,2.3353,3490.9,3490.1,2.86524]
[1721183457960,2.86474,3490.8,3489.9,7.28]
[1721183458157,2.86474,3490.8,3490.0,5.86532]
[1721183458404,1.022,3490.7,3490.1,2.86524]
[1721183459289,2.4448,3491.5,3490.5,2.86491]
[1721183459491,3.8864,3491.2,3490.6,2.86483]
[1721183460107,1.022,3491.0,3490.3,2.86505]
[1721183460310,3.88655,3491.0,3490.3,2.86505]
[1721183460602,1.022,3491.0,3490.3,1.13175253]
[1721183460912,1.022,3491.0,3490.6,2.86478]
[1721183461205,1.022,3491.0,3490.7,2.86475]
[1721183461417,1.022,3491.0,3490.5,2.86486]
[1721183461892,2.86427,3491.3,3490.5,3.26452125]
[1721183462062,1.022,3491.2,3490.8,2.86461]
[1721183462264,1.022,3491.4,3490.8,2.86461]
[1721183462691,1.022,3491.4,3490.9,2.86458]
[1721183463897,7.48,3492.2,3491.2,2.86429]
[1721183463898,9.8076,3492.2,3491.2,2.86429]
[1721183464097,1.022,3491.9,3491.2,2.86429]
[1721183464271,1.022,3491.7,3491.0,2.86444]
[1721183464804,1.022,3491.7,3491.1,2.86441]
[1721183465368,3.88618,3491.4,3490.8,2.86467]
[1721183466097,6.21361,3491.6,3490.8,2.86467]
[1721183466704,1.022,3491.4,3490.8,2.86467]
[1721183467216,3.88618,3491.4,3490.8,2.86467]
[1721183467925,3.88618,3491.4,3490.9,0.03441323]
[1721183468742,2.86426,3491.3,3490.9,0.03441323]
[1721183469105,2.86426,3491.3,3490.7,2.86475]
[1721183469333,2.86426,3491.3,3491.0,0.03434019]
[1721183469543,2.86426,3491.3,3490.7,2.86475]
[1721183470023,2.86426,3491.3,3490.8,0.0343705]
[1721183470225,2.86426,3491.3,3490.7,2.86475]
[1721183470422,1.022,3491.4,3490.8,0.0343705]
[1721183470846,2.86388,3491.8,3490.9,2.86457]
[1721183471145,2.86393,3491.7,3491.1,2.86442]
[1721183471299,2.86394,3491.7,3491.1,2.86442]
[1721183471639,2.86395,3491.7,3491.2,0.03428762]
[1721183471824,1.022,3491.8,3491.2,2.89861762]
[1721183472738,1.022,3491.8,3491.3,2.86418]
[1721183472924,1.022,3492.2,3491.3,2.92145857]
[1721183473103,1.022,3492.2,3491.4,0.03421575]
[1721183473309,1.022,3492.2,3491.5,2.86409]
[1721183473310,3.88557,3492.2,3491.5,2.86409]
[1721183473506,3.88557,3492.2,3491.7,2.86393]
[1721183473507,1.022,3492.2,3491.7,2.86393]
[1721183473836,5.07502231,3492.6,3491.8,2.86384]
[1721183474167,5.07502231,3492.6,3491.9,2.89789999]
[1721183474168,3.88522,3492.6,3491.9,2.89789999]
[1721183474509,2.86328,3492.5,3491.9,2.89789999]
[1721183475161,3.88522,3492.6,3491.9,2.89789999]